bitfinex/quotes_BTCUSD_20251004
["timestamp","ask_amount","ask_price","bid_price","bid_amount"]
[1759602926857,2.01765113,121690.0,121680.0,1e-08]
[1759602926992,2.10309113,121690.0,121680.0,1e-08]
[1759602927822,1.78601113,121690.0,121680.0,1e-08]
[1759602928039,2.10309113,121690.0,121680.0,1e-08]
[1759602928246,1.54273498,121690.0,121680.0,1e-08]
[1759602928521,1.54273498,121690.0,121670.0,1e-08]
[1759602928522,0.53451744,121680.0,121670.0,1e-08]
[1759602928754,1.47064644,121680.0,121670.0,1e-08]
[1759602928986,1.15555644,121680.0,121670.0,1e-08]
[1759602929205,1.47358655,121680.0,121670.0,1e-08]
[1759602929547,1.15884655,121680.0,121670.0,1e-08]
[1759602929760,1.48392655,121680.0,121670.0,0.00300001]
[1759602930672,1.16984655,121680.0,121670.0,0.00300001]
[1759602931078,1.48692655,121680.0,121670.0,0.00300001]
[1759602931876,1.16984655,121680.0,121670.0,0.00300001]
[1759602932063,1.40148655,121680.0,121670.0,0.00300001]
[1759602932270,1.48692655,121680.0,121670.0,0.00300001]
[1759602934302,1.48692655,121680.0,121670.0,0.00320534]
[1759602935391,1.49459937,121680.0,121670.0,0.00320534]
[1759602937272,1.17751937,121680.0,121670.0,0.00320534]
[1759602937476,1.49459937,121680.0,121670.0,0.00320534]
[1759602938045,1.0452265,121680.0,121670.0,0.00320534]
[1759602938449,1.49459937,121680.0,121670.0,0.00320534]
[1759602940466,1.17517937,121680.0,121670.0,0.00320534]
[1759602940753,1.40681937,121680.0,121670.0,0.00320534]
[1759602940981,1.49225937,121680.0,121670.0,0.00320534]
[1759602941189,1.49459937,121680.0,121670.0,0.00320534]
[1759602943193,1.50269805,121680.0,121670.0,0.00320534]
[1759602943435,1.18561805,121680.0,121670.0,0.00320534]
[1759602943636,1.50269805,121680.0,121670.0,0.00320534]
[1759602944430,1.50269805,121680.0,121670.0,0.00823534]
[1759602944431,1.18327805,121680.0,121670.0,0.00823534]
[1759602944629,1.18128805,121680.0,121670.0,0.00823534]
[1759602944842,1.50034805,121680.0,121670.0,0.00520534]
[1759602945037,1.50034805,121680.0,121670.0,0.00320534]
[1759602945456,1.05332518,121680.0,121670.0,0.00320534]
[1759602945806,1.50269805,121680.0,121670.0,0.00320534]
[1759602947958,1.05332518,121680.0,121670.0,0.00320534]
[1759602948166,1.50269805,121680.0,121670.0,0.00320534]
[1759602949242,1.47254615,121680.0,121670.0,0.00320534]
[1759602952711,1.18561805,121680.0,121670.0,0.00320534]
[1759602953135,1.50265805,121680.0,121670.0,0.00320534]
[1759602954288,1.18561805,121680.0,121670.0,0.00320534]
[1759602954435,1.50265805,121680.0,121670.0,0.00320534]
[1759602954629,1.18561805,121680.0,121670.0,0.00320534]
[1759602955065,1.50265805,121680.0,121670.0,0.00320534]
[1759602957168,1.18561805,121680.0,121670.0,0.00320534]
[1759602957617,1.50265805,121680.0,121670.0,0.00320534]
[1759602958049,1.05328518,121680.0,121670.0,0.00320534]
[1759602958273,1.50030805,121680.0,121670.0,0.00320534]
[1759602958489,1.18561805,121680.0,121670.0,0.00320534]
[1759602959106,1.50265805,121680.0,121670.0,0.00320534]
[1759602959311,1.18561805,121680.0,121670.0,0.00320534]
[1759602959537,1.50265805,121680.0,121670.0,0.00320534]
[1759602960700,1.41721805,121680.0,121670.0,0.00320534]
[1759602961019,1.50265805,121680.0,121670.0,0.00320534]
[1759602962365,1.49498523,121680.0,121670.0,0.00320534]
[1759602962824,1.17794523,121680.0,121670.0,0.00320534]
[1759602963043,1.49494523,121680.0,121670.0,0.00320534]
[1759602963269,1.43055647,121680.0,121670.0,0.00320534]
[1759602963485,1.74755647,121680.0,121670.0,0.00320534]
[1759602964219,1.43055647,121680.0,121670.0,0.00320534]
[1759602964433,1.74755647,121680.0,121670.0,0.00320534]
[1759602964642,1.49494523,121680.0,121670.0,0.00320534]
[1759602971855,1.04557236,121680.0,121670.0,0.00320534]
[1759602972065,1.49494523,121680.0,121670.0,0.00320534]
[1759602972284,1.04557236,121680.0,121670.0,0.00320534]
[1759602972492,1.49494523,121680.0,121670.0,0.00320534]
[1759602973494,1.04557236,121680.0,121670.0,0.00320534]
[1759602973693,0.16437905,121670.0,121660.0,0.0032]
[1759602973872,1.01499805,121670.0,121660.0,0.0032]
[1759602974062,1.01697805,121670.0,121660.0,0.0032]
[1759602975132,1.01997805,121670.0,121660.0,0.0092]
[1759602975674,1.05012995,121670.0,121660.0,0.0092]
[1759602977780,0.60075708,121670.0,121660.0,0.0092]
[1759602977996,1.05012995,121670.0,121660.0,0.0092]
[1759602979206,1.01997805,121670.0,121660.0,0.0092]
[1759602979422,1.05012995,121670.0,121660.0,0.00940535]
[1759602979636,1.39012995,121670.0,121660.0,0.00940535]
[1759602980699,1.38712995,121670.0,121660.0,0.00640535]
[1759602980830,1.38712995,121670.0,121660.0,0.00340535]
[1759602981252,1.39012995,121670.0,121660.0,0.00340535]
[1759602981494,1.40112995,121670.0,121660.0,0.00740535]
[1759602982521,1.37097805,121670.0,121660.0,0.00740535]
[1759602983329,1.40112995,121670.0,121660.0,0.00740535]
[1759602983772,1.16956995,121670.0,121660.0,0.00740535]
[1759602984146,1.48668995,121670.0,121660.0,0.00740535]
[1759602987825,1.51136728,121670.0,121660.0,0.00740535]
[1759602988202,1.56769616,121670.0,121660.0,0.00740535]
[1759602999323,0.67009431,121660.0,121650.0,0.0032]
[1759602999522,1.06871834,121660.0,121650.0,0.0032]
[1759602999730,1.07069834,121660.0,121650.0,0.0032]
[1759603000142,1.09537567,121660.0,121650.0,0.0032]
[1759603000556,1.09537567,121660.0,121650.0,0.00728107]
[1759603000777,1.10237567,121660.0,121650.0,0.00728107]
[1759603005027,1.10237567,121660.0,121650.0,0.00748645]
[1759603007048,1.13252757,121660.0,121650.0,0.00748645]
[1759603007258,1.63822932,121660.0,121650.0,1e-08]
[1759603007843,1.97822932,121660.0,121650.0,1e-08]
[1759603008056,1.20596148,121650.0,121640.0,1e-08]
[1759603008273,1.60724761,121650.0,121640.0,4.936e-05]
[1759603008513,1.94923761,121650.0,121640.0,4.936e-05]
[1759603008942,1.9739188,121650.0,121640.0,4.936e-05]
[1759603009367,1.9739188,121650.0,121640.0,0.00304936]
[1759603009368,1.02350796,121650.0,121640.0,0.00304936]
[1759603009578,1.80331146,121650.0,121640.0,0.00304936]
[1759603009805,2.11800146,121650.0,121640.0,0.00304936]
[1759603010018,2.12700146,121650.0,121640.0,0.00704936]
[1759603010229,1.11793796,121650.0,121640.0,0.00704936]
[1759603010614,2.12934146,121650.0,121640.0,0.00704936]
[1759603010913,1.81230146,121650.0,121640.0,0.00704936]
[1759603011118,2.12938146,121650.0,121640.0,0.00704936]
[1759603011373,2.12938146,121650.0,121640.0,0.01225936]
[1759603011374,0.42641606,121650.0,121640.0,0.01225936]
[1759603011581,1.16367781,121650.0,121640.0,0.01225936]
[1759603012130,0.93211781,121650.0,121640.0,0.01225936]
[1759603012459,0.5970634,121650.0,121640.0,0.01225936]
[1759603012677,1.10276515,121650.0,121640.0,0.01225936]
[1759603013144,1.01964309,121650.0,121640.0,0.01225936]
[1759603013763,1.01964309,121650.0,121640.0,0.01246476]
[1759603014451,1.01960309,121650.0,121640.0,0.01246476]
[1759603014902,0.78800309,121650.0,121640.0,0.01246476]
[1759603015113,1.01960309,121650.0,121640.0,0.01246476]
[1759603016136,0.28230134,121650.0,121640.0,0.01246476]
[1759603016294,0.48922015,121650.0,121640.0,0.01246476]
[1759603017318,0.9949219,121650.0,121640.0,0.01246476]
[1759603018881,0.48922015,121650.0,121640.0,0.01246476]
[1759603019206,0.9949219,121650.0,121640.0,0.01246476]
[1759603021090,0.48922015,121650.0,121640.0,0.01246476]
[1759603021278,0.9949219,121650.0,121640.0,0.01246476]
[1759603021483,0.25762015,121650.0,121640.0,0.01246476]
[1759603021660,0.40500608,121650.0,121640.0,0.01246476]
[1759603022246,0.91070783,121650.0,121640.0,0.01246476]
[1759603026359,0.40500608,121650.0,121640.0,0.01246476]
[1759603026611,0.91070783,121650.0,121640.0,0.01246476]
[1759603026802,0.9949219,121650.0,121640.0,0.01246476]
[1759603039680,0.9969019,121650.0,121640.0,0.00725476]
[1759603040279,0.9969019,121650.0,121640.0,0.00941476]
[1759603040688,0.9949219,121650.0,121640.0,0.01263476]
[1759603050446,0.48922015,121650.0,121640.0,0.01263476]
[1759603052086,0.49136015,121650.0,121640.0,0.01263476]
[1759603052247,0.48922015,121650.0,121640.0,0.01263476]
[1759603057045,0.40500608,121650.0,121640.0,0.01263476]
[1759603058559,0.40714608,121650.0,121640.0,0.00725476]
[1759603058982,0.40714608,121650.0,121640.0,0.00921476]
[1759603059229,0.40500608,121650.0,121640.0,0.01228476]
[1759603060623,0.40500608,121650.0,121640.0,0.07106149]
[1759603060828,0.48910015,121650.0,121640.0,0.07106149]
[1759603061468,0.48910015,121650.0,121640.0,0.01228476]
[1759603062958,0.25762015,121650.0,121640.0,0.01228476]
[1759603063178,0.40488608,121650.0,121640.0,0.07106149]
[1759603064376,0.17340608,121650.0,121640.0,0.07106149]
[1759603064563,0.17340608,121650.0,121640.0,0.08750344]
[1759603064758,0.17340608,121650.0,121640.0,0.07106149]
[1759603065451,0.009,121650.0,121640.0,0.25192303]
[1759603065595,0.009,121650.0,121640.0,0.40818435]
[1759603065810,0.009,121650.0,121640.0,0.50672263]
[1759603066010,0.009,121650.0,121640.0,0.51480863]
[1759603066505,0.00055065,121660.0,121650.0,0.16440608]
[1759603066700,0.00055065,121660.0,121650.0,0.22657715]
[1759603066985,0.00055065,121660.0,121650.0,0.22853715]
[1759603068851,0.00855065,121660.0,121650.0,0.23653715]
[1759603069052,0.17294321,121660.0,121650.0,0.07213107]
[1759603069210,0.03303216,121660.0,121650.0,0.25297775]
[1759603069380,0.19742472,121660.0,121650.0,0.07213107]
[1759603069587,0.19742472,121660.0,121650.0,0.25297775]
[1759603069790,0.19742472,121660.0,121650.0,0.23653715]
[1759603069995,0.00855065,121660.0,121650.0,0.23653715]
[1759603072267,0.00855065,121660.0,121650.0,0.26120774]
[1759603072770,0.00855065,121660.0,121650.0,0.20210667]
[1759603075408,0.00855065,121660.0,121650.0,0.28522873]
[1759603076659,0.00855065,121660.0,121650.0,0.28122873]
[1759603077518,0.00055065,121660.0,121650.0,0.27722873]
[1759603077693,0.00355065,121660.0,121650.0,0.28022873]
[1759603077906,0.00355065,121660.0,121650.0,0.28622873]
[1759603081048,0.00355065,121660.0,121650.0,0.51774873]
[1759603081410,0.00355065,121660.0,121650.0,0.28622873]
[1759603081615,0.00355065,121660.0,121650.0,0.51774873]
[1759603083868,0.00355065,121660.0,121650.0,0.28622873]
[1759603084046,0.00355065,121660.0,121650.0,0.51774873]
[1759603086413,0.00355065,121660.0,121650.0,0.51770873]
[1759603088570,0.00355065,121660.0,121650.0,0.57666413]
[1759603088774,0.00355065,121660.0,121650.0,0.34518413]
[1759603088973,0.00355065,121660.0,121650.0,0.57666413]
[1759603090236,0.00355065,121660.0,121650.0,0.18077805]
[1759603090470,0.00553065,121660.0,121650.0,0.25703207]
[1759603090741,0.16992321,121660.0,121650.0,0.48863207]
[1759603091010,0.16992321,121660.0,121650.0,0.49064207]
[1759603091203,0.24491237,121660.0,121650.0,0.49383207]
[1759603091419,0.24491237,121660.0,121650.0,0.32942599]
[1759603091696,0.24491237,121660.0,121650.0,0.49383207]
[1759603091926,0.16794321,121660.0,121650.0,0.49383207]
[1759603094499,0.16794321,121660.0,121650.0,0.43487667]
[1759603098462,0.16794321,121660.0,121650.0,0.50874231]
[1759603102919,0.16993321,121660.0,121650.0,0.27714231]
[1759603103152,0.16993321,121660.0,121650.0,0.50551231]
[1759603103350,0.16993321,121660.0,121650.0,0.50870231]
[1759603103578,0.16794321,121660.0,121650.0,0.50870231]
[1759603111929,0.16896425,121660.0,121650.0,0.08501564]
[1759603112099,0.16698425,121660.0,121650.0,0.33604624]
[1759603112307,0.16698425,121660.0,121650.0,0.31960564]
[1759603114018,1.26594044,121660.0,121650.0,0.14198742]
[1759603114218,0.7604691,121660.0,121650.0,0.29964178]
[1759603114424,0.7604691,121660.0,121650.0,0.24052]
[1759603115073,0.75787741,121660.0,121650.0,0.006]
[1759603115454,0.76987741,121660.0,121650.0,0.01]
[1759603116098,0.76987741,121660.0,121650.0,0.004]
[1759603116298,0.77387741,121660.0,121650.0,0.004]
[1759603117570,1.62426271,121660.0,121650.0,0.004]
[1759603117788,1.11879137,121660.0,121650.0,0.004]
[1759603117998,1.14347046,121660.0,121650.0,0.004]
[1759603119607,1.20386635,121660.0,121650.0,0.004]
[1759603119800,0.97222635,121660.0,121650.0,0.004]
[1759603120008,1.20394635,121660.0,121650.0,0.004]
[1759603123138,1.06308185,121660.0,121650.0,0.00615]
[1759603123551,0.26549462,121660.0,121650.0,0.00615]
[1759603123761,1.00074596,121660.0,121650.0,0.00922]
[1759603123986,1.00272596,121660.0,121650.0,0.00615]
[1759603125412,0.49527462,121660.0,121650.0,0.00922]
[1759603125656,1.00074596,121660.0,121650.0,0.00922]
[1759603130050,0.41215256,121660.0,121650.0,0.00922]
[1759603130229,0.41215256,121660.0,121650.0,0.004]
[1759603130230,1.00381797,121660.0,121650.0,0.004]
[1759603130931,1.00616797,121660.0,121650.0,0.004]
[1759603131348,1.08929003,121660.0,121650.0,0.004]
[1759603135351,1.59476137,121660.0,121650.0,0.004]
[1759603135576,0.16440608,121650.0,121640.0,0.00025476]
[1759603135825,1.34268489,121650.0,121640.0,0.00025476]
[1759603136042,1.34471489,121650.0,121640.0,0.00025476]
[1759603136268,1.37169561,121650.0,121640.0,0.00025476]
[1759603136882,1.37969561,121650.0,121640.0,0.00425476]
[1759603137014,1.38069561,121650.0,121640.0,0.00425476]
[1759603138251,1.10496427,121650.0,121640.0,0.00425476]
[1759603139025,1.10726427,121650.0,121640.0,0.00425476]
[1759603141239,0.87522427,121650.0,121640.0,0.00425476]
[1759603141469,1.10504427,121650.0,121640.0,0.00624476]
[1759603142172,1.10504427,121650.0,121640.0,0.00425476]
[1759603143045,0.7866802,121650.0,121640.0,0.00929476]
[1759603143170,1.0188002,121650.0,121640.0,0.00929476]
[1759603144676,0.48864814,121650.0,121640.0,0.00929476]
[1759603145277,0.99411948,121650.0,121640.0,0.00929476]
[1759603145933,0.48864814,121650.0,121640.0,0.00929476]
[1759603146130,0.57286221,121650.0,121640.0,0.00929476]
[1759603146339,1.07833355,121650.0,121640.0,0.00929476]
[1759603148358,0.57286221,121650.0,121640.0,0.00929476]
[1759603149618,0.34074221,121650.0,121640.0,0.00929476]
[1759603149825,0.57286221,121650.0,121640.0,0.00929476]
[1759603150259,0.48864814,121650.0,121640.0,0.00929476]
[1759603151435,0.48860814,121650.0,121640.0,0.00929476]
[1759603151963,0.48864814,121650.0,121640.0,0.00929476]
[1759603154746,0.25652814,121650.0,121640.0,0.00929476]
[1759603155010,0.48860814,121650.0,121640.0,0.00929476]
[1759603155194,0.57155083,121650.0,121640.0,0.00929476]
[1759603158445,0.57155083,121650.0,121640.0,0.17371435]
[1759603158446,0.009,121650.0,121640.0,0.17371435]
[1759603158662,0.009,121650.0,121640.0,0.23283613]
[1759603159296,0.20916164,121670.0,121640.0,0.22883613]
[1759603159504,0.2922837,121670.0,121650.0,0.0164406]
[1759603159714,0.2922837,121670.0,121660.0,0.00504]
[1759603159931,0.37649777,121670.0,121660.0,0.00504]
[1759603161598,0.38349777,121670.0,121660.0,0.00504]
[1759603161963,0.37947777,121670.0,121660.0,0.00504]
[1759603162359,0.39347777,121670.0,121660.0,0.00904]
[1759603165370,0.3936831,121670.0,121660.0,0.00904]
[1759603166314,0.3917031,121670.0,121660.0,0.00904]
[1759603167094,0.41984697,121670.0,121660.0,0.00904]
[1759603167524,0.18780697,121670.0,121660.0,0.00904]
[1759603167777,0.41984697,121670.0,121660.0,0.00904]
[1759603168919,0.18780697,121670.0,121660.0,0.00904]
[1759603169082,0.41984697,121670.0,121660.0,0.00904]
[1759603169611,0.18780697,121670.0,121660.0,0.00904]
[1759603170023,0.41984697,121670.0,121660.0,0.00904]
[1759603170230,0.43356212,121670.0,121660.0,0.00904]
[1759603170598,0.20152212,121670.0,121660.0,0.00904]
[1759603170894,0.43352212,121670.0,121660.0,0.00904]
[1759603171259,0.20152212,121670.0,121660.0,0.00904]
[1759603171451,0.43352212,121670.0,121660.0,0.00904]
[1759603172075,0.20152212,121670.0,121660.0,0.00904]
[1759603172253,0.43352212,121670.0,121660.0,0.00904]
[1759603172792,0.20152212,121670.0,121660.0,0.00904]
[1759603172941,0.43352212,121670.0,121660.0,0.00904]
[1759603173323,0.20152212,121670.0,121660.0,0.00904]
[1759603173576,0.43352212,121670.0,121660.0,0.00904]
[1759603174340,0.20152212,121670.0,121660.0,0.00904]
[1759603174541,0.41980697,121670.0,121660.0,0.00904]
[1759603181874,0.42178697,121670.0,121660.0,0.00904]
[1759603182374,0.41980697,121670.0,121660.0,0.00904]
[1759603183145,0.42178697,121670.0,121660.0,0.00599]
[1759603183754,0.41980697,121670.0,121660.0,0.00908]
[1759603185641,0.42178697,121670.0,121660.0,0.00599]
[1759603186303,0.41980697,121670.0,121660.0,0.00908]
[1759603187859,0.42178697,121670.0,121660.0,0.00599]
[1759603188207,0.42178697,121670.0,121660.0,0.06511178]
[1759603188402,0.42178697,121670.0,121660.0,0.06820178]
[1759603188658,0.41980697,121670.0,121660.0,0.06820178]
[1759603195014,0.42178697,121670.0,121660.0,0.06820178]
[1759603195313,0.41980697,121670.0,121660.0,0.06820178]
[1759603198451,0.18780697,121670.0,121660.0,0.06820178]
[1759603198671,0.41960697,121670.0,121660.0,0.06820178]
[1759603200573,0.47882664,121670.0,121660.0,0.06820178]
[1759603201551,0.48078664,121670.0,121660.0,0.06511178]
[1759603201953,0.48078664,121670.0,121660.0,0.06814178]
[1759603202166,0.47882664,121670.0,121660.0,0.06814178]
[1759603204763,0.48078664,121670.0,121660.0,0.06814178]
[1759603205014,0.47882664,121670.0,121660.0,0.06814178]
[1759603211121,0.48078664,121670.0,121660.0,0.06511178]
[1759603212306,0.48078664,121670.0,121660.0,0.06814178]
[1759603212509,0.48078664,121670.0,121660.0,0.06511178]
[1759603216217,0.48078664,121670.0,121660.0,0.06814178]
[1759603216734,0.48078664,121670.0,121660.0,0.06511178]
[1759603219481,0.47882664,121670.0,121660.0,0.06814178]
[1759603224240,0.48078664,121670.0,121660.0,0.06814178]
[1759603225488,0.48078664,121670.0,121660.0,0.06511178]
[1759603229565,0.48078664,121670.0,121660.0,0.06814178]
[1759603229781,0.42156697,121670.0,121660.0,0.06814178]
[1759603232523,0.18976697,121670.0,121660.0,0.06814178]
[1759603232734,0.42140697,121670.0,121660.0,0.06814178]
[1759603234078,0.42140697,121670.0,121660.0,0.06511178]
[1759603234266,0.42140697,121670.0,121660.0,0.06819178]
[1759603234421,0.48350892,121670.0,121660.0,0.06819178]
[1759603235879,0.41318802,121670.0,121660.0,0.06819178]
[1759603236096,0.41318802,121670.0,121660.0,0.06511178]
[1759603236300,0.91868834,121670.0,121660.0,0.06511178]
[1759603236710,0.42140697,121670.0,121660.0,0.06511178]
[1759603236914,0.92690729,121670.0,121660.0,0.06511178]
[1759603237733,0.92690729,121670.0,121660.0,0.06819178]
[1759603239679,0.95158007,121670.0,121660.0,0.06819178]
[1759603240391,0.44607975,121670.0,121660.0,0.06819178]
[1759603240602,0.95158007,121670.0,121660.0,0.06819178]
[1759603242165,0.94962007,121670.0,121660.0,0.06819178]
[1759603244232,0.95160007,121670.0,121660.0,0.06819178]
[1759603244468,0.94962007,121670.0,121660.0,0.06819178]
[1759603247454,0.44411975,121670.0,121660.0,0.06819178]
[1759603247665,0.94962007,121670.0,121660.0,0.06819178]
[1759603250781,0.95160007,121670.0,121660.0,0.06819178]
[1759603251215,0.94962007,121670.0,121660.0,0.06819178]
[1759603251844,0.21247975,121670.0,121660.0,0.06819178]
[1759603252065,0.94958007,121670.0,121660.0,0.06819178]
[1759603252508,0.03987811,121670.0,121660.0,0.06819178]
[1759603252741,0.41118438,121670.0,121660.0,0.08463103]
[1759603252971,0.01520533,121670.0,121660.0,0.24902359]
[1759603253177,0.01520533,121670.0,121660.0,0.23258434]
[1759603253396,0.17958438,121670.0,121660.0,0.19813311]
[1759603253613,0.17958438,121670.0,121660.0,0.03374055]
[1759603255415,0.17958438,121670.0,121660.0,0.09285614]
[1759603258581,0.17958438,121670.0,121660.0,0.10929539]
[1759603259792,0.17958438,121670.0,121660.0,0.09285614]
[1759603260124,0.17958438,121670.0,121660.0,0.10929539]
[1759603261892,0.17958438,121670.0,121660.0,0.27368795]
[1759603262108,0.17958438,121670.0,121660.0,0.09285614]
[1759603262311,0.17958438,121670.0,121660.0,0.10929539]
[1759603264044,0.17958438,121670.0,121660.0,0.27368795]
[1759603264195,0.17958438,121670.0,121660.0,0.2572487]
[1759603264403,0.17958438,121670.0,121660.0,0.09285614]
[1759603264669,0.17958438,121670.0,121660.0,0.10929539]
[1759603267966,0.17958438,121670.0,121660.0,0.27368795]
[1759603268163,0.17958438,121670.0,121660.0,0.2572487]
[1759603270094,0.17958438,121670.0,121660.0,0.09285614]
[1759603272724,0.18156438,121670.0,121660.0,0.08778614]
[1759603273211,0.18156438,121670.0,121660.0,0.08987614]
[1759603273446,0.18156438,121670.0,121660.0,0.09296614]
[1759603273663,0.17958438,121670.0,121660.0,0.09296614]
[1759603274942,0.77362877,121670.0,121660.0,0.08778614]
[1759603275163,0.77362877,121670.0,121660.0,0.004]
[1759603275375,0.29280121,121670.0,121660.0,0.004]
[1759603275582,0.79830153,121670.0,121660.0,0.004]
[1759603277460,0.79595153,121670.0,121660.0,0.004]
[1759603277660,1.02751153,121670.0,121660.0,0.004]
[1759603280040,1.02986153,121670.0,121660.0,0.004]
[1759603287624,1.02755153,121670.0,121660.0,0.004]
[1759603287766,0.79595153,121670.0,121660.0,0.004]
[1759603287969,1.02755153,121670.0,121660.0,0.004]
[1759603288421,0.94333746,121670.0,121660.0,0.004]
[1759603291435,0.43783714,121670.0,121660.0,0.004]
[1759603291643,0.94333746,121670.0,121660.0,0.004]
[1759603296368,0.43783714,121670.0,121660.0,0.00598]
[1759603297639,0.43783714,121670.0,121660.0,0.004]
[1759603298071,0.46901025,121670.0,121660.0,0.004]
[1759603299207,0.23741025,121670.0,121660.0,0.004]
[1759603299407,0.46897025,121670.0,121660.0,0.00598]
[1759603300491,0.23741025,121670.0,121660.0,0.00598]
[1759603300633,0.43779714,121670.0,121660.0,0.00598]
[1759603300841,0.43779714,121670.0,121660.0,0.004]
[1759603303637,0.43779714,121670.0,121660.0,0.00598]
[1759603304215,0.43779714,121670.0,121660.0,0.06509559]
[1759603304623,0.49907083,121670.0,121660.0,0.06509559]
[1759603308261,0.26751083,121670.0,121660.0,0.06509559]
[1759603308422,0.49907083,121670.0,121660.0,0.06509559]
[1759603308605,0.26751083,121670.0,121660.0,0.06509559]
[1759603308850,0.49907083,121670.0,121660.0,0.06509559]
[1759603312364,0.49907083,121670.0,121660.0,0.06311559]
[1759603313288,0.43779714,121670.0,121660.0,0.06311559]
[1759603316194,0.20623714,121670.0,121660.0,0.06311559]
[1759603316399,0.43779714,121670.0,121660.0,0.06311559]
[1759603338081,0.44014714,121670.0,121660.0,0.06311559]
[1759603338782,0.8894843,121670.0,121660.0,0.06311559]
[1759603339154,0.97369837,121670.0,121660.0,0.06311559]
[1759603343467,0.52436121,121670.0,121660.0,0.06311559]
[1759603344103,0.52436121,121670.0,121660.0,0.004]
[1759603344104,1.05682043,121670.0,121660.0,0.004]
[1759603347269,1.05682043,121670.0,121660.0,0.0483358]
[1759603348593,1.04282043,121670.0,121660.0,0.0443358]
[1759603350058,1.04782043,121670.0,121660.0,0.0453358]
[1759603350280,1.04682043,121670.0,121660.0,0.0453358]
[1759603350701,0.5119392,121670.0,121660.0,0.0505058]
[1759603350905,0.2803792,121670.0,121660.0,0.0505058]
[1759603351105,0.5119392,121670.0,121660.0,0.0505058]
[1759603351533,0.5139192,121670.0,121660.0,0.0473958]
[1759603351785,0.19725714,121670.0,121660.0,0.0505058]
[1759603351984,0.42881714,121670.0,121660.0,0.0505058]
[1759603352187,0.25739783,121670.0,121660.0,0.0505058]
[1759603352392,0.42881714,121670.0,121660.0,0.0505058]
[1759603353323,0.19725714,121670.0,121660.0,0.0505058]
[1759603353525,0.42881714,121670.0,121660.0,0.0505058]
[1759603357307,0.19725714,121670.0,121660.0,0.0505058]
[1759603357517,0.42881714,121670.0,121660.0,0.0505058]
[1759603357813,0.51303121,121670.0,121660.0,0.0505058]
[1759603358489,0.28147121,121670.0,121660.0,0.0505058]
[1759603358853,0.51303121,121670.0,121660.0,0.0505058]
[1759603361537,0.28147121,121670.0,121660.0,0.0505058]
[1759603361737,0.48835845,121670.0,121660.0,0.00617]
[1759603375762,0.25679845,121670.0,121660.0,0.00617]
[1759603375961,0.48835845,121670.0,121660.0,0.00617]
[1759603376887,0.25679845,121670.0,121660.0,0.00617]
[1759603377137,0.48835845,121670.0,121660.0,0.00617]
[1759603377315,0.25679845,121670.0,121660.0,0.00617]
[1759603377613,0.48835845,121670.0,121660.0,0.00617]
[1759603380289,0.49033845,121670.0,121660.0,0.00617]
[1759603380441,0.49033845,121670.0,121660.0,0.06528559]
[1759603380618,0.99578552,121670.0,121660.0,0.00617]
[1759603381038,0.76422552,121670.0,121660.0,0.00617]
[1759603381267,0.99578552,121670.0,121660.0,0.00617]
[1759603382132,0.99578552,121670.0,121660.0,0.00306]
[1759603382637,0.76422552,121670.0,121660.0,0.00306]
[1759603382836,0.99578552,121670.0,121660.0,0.00306]
[1759603383037,0.76422552,121670.0,121660.0,0.00306]
[1759603383633,0.99578552,121670.0,121660.0,0.001]
[1759603390036,1.02045745,121670.0,121660.0,0.0031]
[1759603394074,0.51501038,121670.0,121660.0,0.0031]
[1759603397041,1.02045745,121670.0,121660.0,0.0031]
[1759603398983,1.02045745,121670.0,121660.0,0.00617]
[1759603399183,1.01847745,121670.0,121660.0,0.00617]
[1759603401563,0.93426338,121670.0,121660.0,0.00617]
[1759603401774,0.42881631,121670.0,121660.0,0.00617]
[1759603407646,0.43061631,121670.0,121660.0,0.00617]
[1759603410545,0.43061631,121670.0,121660.0,0.06528559]
[1759603412603,0.43057631,121670.0,121660.0,0.06528559]
[1759603413859,0.40590438,121670.0,121660.0,0.06528559]
[1759603416816,0.47609395,121670.0,121660.0,0.06528559]
[1759603420264,0.50076588,121670.0,121660.0,0.06528559]
[1759603427143,0.50076588,121670.0,121660.0,0.22967815]
[1759603427144,0.01000533,121670.0,121660.0,0.22967815]
[1759603427547,0.01000533,121670.0,121660.0,0.25434765]
[1759603427752,0.01000533,121670.0,121660.0,0.19523206]
[1759603428154,0.01000533,121670.0,121660.0,0.25433894]
[1759603428961,0.01000533,121670.0,121660.0,0.19523206]
[1759603429167,0.01000533,121670.0,121660.0,0.25433266]
[1759603429575,0.00500533,121670.0,121660.0,0.25333266]
[1759603429777,0.00500533,121670.0,121660.0,0.48485266]
[1759603430073,0.00700533,121670.0,121660.0,0.48885266]
[1759603430280,0.00700533,121670.0,121660.0,0.49185266]
[1759603431043,0.00700533,121670.0,121660.0,0.43275206]
[1759603431285,0.00700533,121670.0,121660.0,0.49184325]
[1759603431433,0.00700533,121670.0,121660.0,0.50022195]
[1759603436812,0.00700533,121670.0,121660.0,0.44113076]
[1759603437233,0.00700533,121670.0,121660.0,0.5149964]
[1759603438286,0.00700533,121670.0,121660.0,0.2834764]
[1759603438489,0.00700533,121670.0,121660.0,0.5149564]
[1759603441313,0.00700533,121670.0,121660.0,0.59807846]
[1759603441525,0.00054633,121670.0,121660.0,0.93807846]
[1759603441672,0.00054633,121670.0,121660.0,0.86421282]
[1759603441873,0.00054633,121670.0,121660.0,0.96723534]
[1759603442291,0.16433892,121700.0,121680.0,0.16435876]
[1759603442502,0.16433892,121700.0,121690.0,0.29554679]
[1759603442908,0.16495474,121700.0,121690.0,0.32021259]
[1759603443988,0.16795474,121700.0,121690.0,0.32021259]
[1759603444382,0.17995474,121700.0,121690.0,0.32021259]
[1759603444924,0.16795474,121700.0,121690.0,0.32021259]
[1759603445123,0.18495474,121700.0,121690.0,0.32421259]
[1759603446369,0.18495474,121700.0,121690.0,0.2651958]
[1759603446822,0.18495474,121700.0,121690.0,0.32421259]
[1759603447401,0.18495474,121700.0,121690.0,0.2651958]
[1759603448694,0.18495474,121700.0,121690.0,0.02882658]
[1759603448899,0.18495474,121700.0,121690.0,0.03079658]
[1759603449890,0.18495474,121700.0,121690.0,0.26227658]
[1759603454737,0.18495474,121700.0,121690.0,0.23227658]
[1759603456698,0.18495474,121700.0,121690.0,0.23535658]
[1759603456875,0.18495474,121700.0,121690.0,0.23227658]
[1759603457270,0.18495474,121700.0,121690.0,0.23535658]
[1759603458099,0.18691474,121700.0,121690.0,0.23227658]
[1759603459115,0.18495474,121700.0,121690.0,0.23227658]
[1759603459510,0.18495474,121700.0,121690.0,0.23535658]
[1759603459720,0.18691474,121700.0,121690.0,0.23223658]
[1759603460076,0.18691474,121700.0,121690.0,0.27645716]
[1759603461866,0.18691435,121700.0,121690.0,0.27645716]
[1759603462288,0.18691435,121700.0,121690.0,0.23223658]
[1759603462490,0.18495435,121700.0,121690.0,0.23223658]
[1759603462711,0.18495435,121700.0,121690.0,0.39658862]
[1759603464126,0.18495435,121700.0,121690.0,0.45560541]
[1759603464360,0.18495435,121700.0,121690.0,0.29125337]